[Event "34th Pula Open 2022"]
[Site "Pula"]
[Date "2022.06.23"]
[Round "7.11"]
[White "Milekic, Daniel"]
[Black "Makovec, Bruno"]
[Result "1/2-1/2"]
[ECO "A33"]
[WhiteElo "2280"]
[BlackElo "2215"]
[Annotator "TA"]
[PlyCount "108"]
[EventDate "2022.06.18"]
[EventType "swiss"]
[EventCountry "CRO"]
[SourceTitle "playchess.com"]
[Source "ChessBase"]
[SourceQuality "1"]
[TimeControl "5400+30"]

{[%evp 16,108,0,0,104,92,97,48,37,0,53,32,19,23,0,-27,47,45,72,59,86,-90,-90,-100,37,-128,-125,-120,-109,-141,-140,-169,-97,-87,-71,-145,-95,-125,-129,-121,-124,-128,-125,-123,-67,-228,-135,-180,-167,-212,-194,-312,-300,-371,-202,-195,-98,-76,-91,-109,-31,-39,0,0,0,0,0,0,0,0,35,40,50,63,64,27,49,30,15,23,20,0,0,0,0,0,0,0,0,0,0,0,37,-41,-54]} 1. c4 {[%emt 0:00:16]} c5 {[%emt 0:01:17]} 2. Nf3 {[%emt 0:00:09]} Nc6 {[%emt 0:00:07]} 3. d4 {[%emt 0:00:31]} cxd4 {[%emt 0:03:06]} 4. Nxd4 {[%emt 0:00:10]} e6 {[%emt 0:01:02]} 5. g3 {[%emt 0:01:07]} Qb6 {[%emt 0:04:54]} 6. Nb3 {[%emt 0:11:25]} Ne5 {[%emt 0:08:46]} 7. e4 {[%emt 0:07:38]} Nf6 {[%emt 0:04:53]} 8. Nc3 {[%emt 0:01:33]} Bb4 {[%emt 0:08:20]} 9. Qe2 {[%emt 0:00:53]} Qc6 {[%emt 0:13:31] A33: Symmetrical English: 2 Nf3 Nf6 3 d4 cxd4 4 Nxd4 e6 5 Nc3 Nc6.} (9... d6 $1 $11) 10. Bd2 {[%emt 0:15:52]} d6 {[%emt 0:13:00]} 11. f3 {[%emt 0:08:15] [#]} (11. Nd4 $16 Qb6 12. Nc2) 11... O-O $146 {[%emt 0:01:42] White is slightly better.} ({Predecessor:} 11... b6 12. f4 Ned7 13. Nd4 Qc5 14. a3 Bxc3 15. Bxc3 Ba6 16. Nb5 Bxb5 17. cxb5 O-O {½-½ (37) Kouatly,B-Plewe,T Brussels 1984}) 12. O-O-O {[%emt 0:03:13]} a6 {[%emt 0:09:00]} (12... Bd7 $11) 13. Nd4 {[%emt 0:04:46]} Qc7 {[%emt 0:00:36][%cal Ob7b5]} 14. f4 {[%emt 0:01:06]} Nc6 {[%emt 0:00:53]} 15. Nc2 {[%emt 0:01:14]} Bc5 {[%emt 0:01:45]} ({Black should play} 15... b5 $1 $11) 16. Be3 $14 {[%emt 0:03:39]} e5 {[%emt 0:06:23]} 17. f5 {[%emt 0:02:22]} b5 {[%emt 0:02:48]} 18. cxb5 $2 {[%emt 0:06:40]} (18. Bg5 $16) 18... axb5 $17 {[%emt 0:00:39]} 19. Nxb5 {[%emt 0:00:41]} Qb6 {[%emt 0:01:37]} (19... Qa5 $1 $17 {Strongly threatening ...Ba6.} 20. Bg5 (20. Nxd6 Nd4 $17) 20... Qxa2 21. Bxf6 Na5) 20. Nxd6 $2 {[%emt 0:07:39]} (20. Rxd6 $14 {is the one way to stay ahead.} Ba6 21. Rxf6 $1 gxf6 22. Bh6) 20... Rxa2 {[%emt 0:01:34]} 21. Nc4 {[%emt 0:03:23]} Qa7 {[%emt 0:04:02]} (21... Bxe3+ $6 22. Qxe3 Qb8 23. Kb1 $15) 22. Bxc5 {[%emt 0:01:09]} Qxc5 {[%emt 0:00:18]} 23. Kb1 {[%emt 0:01:21]} Ra8 {[%emt 0:01:56]} ({Better is} 23... Ra4 $1 $19 {And now ...Nd4 would win.} 24. b3 Ra7) 24. Qe3 {[%emt 0:01:52] Inhibits Nd4.} (24. Rd6 $2 Nd4 25. Nxd4 exd4 26. Rxf6 (26. Rb6 $2 Nxe4 27. Qc2 Nf2 $19) 26... gxf6 27. Qg4+ Kh8 $19) 24... Qe7 {[%emt 0:04:24][%mdl 1024] Black has strong compensation.} (24... Qxe3 $6 25. N2xe3 Ra4 26. Bg2 $11) 25. Be2 {[%emt 0:03:09]} (25. Nb6 $142 Rb8 26. Nd5 Nxd5 27. Rxd5) 25... Nb4 {[%emt 0:01:02]} (25... Bb7 $142 $1 26. Bf3 Nb4) 26. N2a3 {[%emt 0:04:01]} Bb7 {[%emt 0:01:16]} 27. Bf3 {[%emt 0:00:18]} Nc6 {[%emt 0:00:39]} 28. g4 {[%emt 0:04:59]} Nd4 {[%emt 0:00:27]} 29. g5 {[%emt 0:00:21]} Nd7 {[%emt 0:00:28]} (29... Ne8 $1 $17 {Threatens to win with ...Nd6.} 30. f6 Qb4) 30. Bg2 $2 {[%emt 0:01:44]} (30. Nxe5 $1 $15 Nxf3 31. Nxd7 (31. Rxd7 Qxe5 32. Rxb7 Rab8 $17) 31... Qxe4+ 32. Qxe4 Bxe4+ 33. Ka2) 30... f6 {[%emt 0:01:31]} ({Black should try} 30... Rfb8 $19 {aiming for ...Ra4.} 31. f6 Qb4) 31. gxf6 {[%emt 0:00:45]} gxf6 {[%emt 0:00:02]} 32. Rhg1 {[%emt 0:00:31]} Kh8 $1 {[%emt 0:00:03]} 33. Bf1 {[%emt 0:00:47]} (33. Rd2 {was necessary.}) 33... Nc5 $19 {[%emt 0:00:05]} 34. Bd3 {[%emt 0:00:38]} Bc6 {[%emt 0:00:34]} (34... Rfb8 $142 35. Rg4 Na4) 35. Rg4 {[%emt 0:00:42]} Rab8 {[%emt 0:00:59]} (35... Na4 $19 {[%cal Oa4b2] White must now prevent ...Nxb2!} 36. Bc2 (36. Nc2 Rfb8 $19) 36... Nxb2 $1 37. Kxb2 Qb4+ 38. Bb3 (38. Kc1 $2 Nxc2 39. Qh6 Rf7 $19) 38... Ba4 39. Rxd4 exd4) 36. Rdg1 $17 {[%emt 0:00:42]} Nxd3 {[%emt 0:01:59]} ({Don't play} 36... Rb3 37. Qg3 $1 Qf7 38. Rg7 Rxd3 39. Qg4 (39. Rxf7 Rxg3 40. Rxf8+ Kg7 $16) 39... Bxe4 40. Rxf7 Rg3+ 41. Ka2 Rxg4 42. Rxf8+ Kg7 43. Rxg4+ $16) 37. Qxd3 {[%emt 0:00:13] [#]} Qb7 {[%emt 0:01:40]} (37... Rb3 $1 $17 {[%cal Rb3d3]} 38. Qd2 Nf3) 38. Qe3 $15 {[%emt 0:00:36][%cal Og4g7]} Rg8 {[%emt 0:00:33]} 39. Rxg8+ {[%emt 0:00:19]} Rxg8 {[%emt 0:00:01]} 40. Rxg8+ {[%emt 0:00:08]} Kxg8 {[%emt 0:00:03]} 41. Nd2 {[%emt 0:00:11]} Ba4 {[%emt 0:00:42] Prevents Nc2.} 42. Qc3 {[%emt 0:01:38]} Bc6 {[%emt 0:00:13]} 43. Qd3 {[%emt 0:00:35]} Kh8 {[%emt 0:00:17]} 44. Nc2 {[%emt 0:01:17]} Bb5 {[%emt 0:00:21]} 45. Qa3 {[%emt 0:00:10][%cal Ra3f8]} (45. Qe3 $5 {[%cal Rc2d4]}) 45... Kg7 {[%emt 0:00:13] Inhibits Qf8+.} 46. Nxd4 {[%emt 0:00:33]} exd4 $14 {[%emt 0:00:10][%mdl 4096] Endgame KQB-KQN} 47. Qg3+ {[%emt 0:00:39]} Kf7 {[%emt 0:00:37]} 48. b3 {[%emt 0:00:45]} Qc6 {[%emt 0:00:23]} 49. Qh3 {[%emt 0:01:28]} Kg7 {[%emt 0:01:02]} 50. Qg3+ {[%emt 0:00:20]} Kf7 $1 {[%emt 0:00:04]} 51. Qh3 {[%emt 0:00:48]} Kg7 {[%emt 0:01:20]} 52. Qg3+ {[%emt 0:00:30]} Kf7 $1 {[%emt 0:00:26]} 53. Qh3 {[%emt 0:00:32]} d3 {[%emt 0:00:02] ...Qc2+ is the strong threat.} 54. Kb2 (54. Qxh7+ $14 Kf8 55. Qh8+ Ke7 56. Qg7+ Ke8 57. Qg8+ Ke7 58. Nc4 (58. Qg7+ Ke8 $14)) 54... Qc2+ {[%emt 0:00:14] Whites escaped into a draw.  Weighted Error Value: White=0.31/Black=0.32} 1/2-1/2

[Event "34th Pula Open 2022"]
[Site "Pula"]
[Date "2022.06.23"]
[Round "7.12"]
[White "Kolesar, Milan"]
[Black "Filipovic, Branko"]
[Result "1/2-1/2"]
[WhiteElo "2169"]
[BlackElo "2336"]
[Annotator "TA"]
[PlyCount "32"]
[EventDate "2022.06.18"]
[EventType "swiss"]
[EventCountry "CRO"]
[SourceTitle "playchess.com"]
[Source "ChessBase"]
[SourceQuality "1"]
[TimeControl "5400+30"]

{[%evp 15,18,6,16,-14,-12]} 1. Nf3 {[%emt 0:00:03]} Nf6 {[%emt 0:00:23]} 2. c4 {[%emt 0:00:07]} b6 {[%emt 0:00:29]} 3. g3 {[%emt 0:00:11]} Bb7 {[%emt 0:00:35]} 4. Bg2 {[%emt 0:00:07]} g6 {[%emt 0:00:08]} 5. Nc3 {[%emt 0:00:14]} Bg7 {[%emt 0:00:54]} 6. O-O {[%emt 0:00:10]} O-O {[%emt 0:00:52]} 7. d4 {[%emt 0:01:50]} Ne4 {[%emt 0:00:21]} 8. Nxe4 {[%emt 0:01:04]} Bxe4 {[%emt 0:00:09]} 9. d5 {[%emt 0:03:22] A50: Queen's Fianchetto Defence (1 d4 Nf6 2 c4 b6).} c6 {[%emt 0:19:23] [#] Not much happened in this game.} {Predecessor:} 10. Bh3 $146 Bxf3 11. exf3 cxd5 12. cxd5 e6 13. f4 Na6 14. Bg2 Rb8 15. Qe2 Nc5 16. Be3 a5 {1-0 (45) Sturua,Z (2555)-Kozul,Z (2617) Minsk 2017} 1/2-1/2

[Event "34th Pula Open 2022"]
[Site "Pula"]
[Date "2022.06.24"]
[Round "8.1"]
[White "Zufic, Miroslav"]
[Black "Nikcevic, Nebojsa"]
[Result "1-0"]
[ECO "C43"]
[WhiteElo "2384"]
[BlackElo "2387"]
[Annotator "TA"]
[PlyCount "77"]
[EventDate "2022.06.18"]
[EventType "swiss"]
[EventCountry "CRO"]
[SourceTitle "playchess.com"]
[Source "ChessBase"]
[SourceQuality "1"]
[TimeControl "5400+30"]

{[%evp 9,77,20,30,10,43,37,38,42,37,36,60,10,64,8,8,6,0,2,4,-5,0,0,0,-11,0,-36,-29,-35,73,73,73,73,73,73,73,74,73,76,73,75,85,95,99,26,63,86,181,120,266,275,270,231,225,222,312,307,318,317,272,145,251,227,246,250,580,539,680,643,610,522]} 1. e4 {[%emt 0:00:03]} e5 {[%emt 0:01:30]} 2. Nf3 {[%emt 0:00:06]} Nf6 {[%emt 0:00:06]} 3. d4 {[%emt 0:00:15]} Nxe4 {[%emt 0:00:10]} 4. Bd3 {[%emt 0:00:17]} Nc6 {[%emt 0:00:12]} 5. Nxe5 {[%emt 0:00:47]} Nxe5 {[%emt 0:00:13]} 6. dxe5 {[%emt 0:00:04] C43: Petroff Defence: 3 d4.} d5 {[%emt 0:01:13]} (6... Nc5 $5 {[%cal Rd7d6]}) 7. exd6 {[%emt 0:00:17]} Nxd6 {[%emt 0:01:21]} 8. Nc3 {[%emt 0:00:08] White is slightly better.} Be6 {[%emt 0:15:55]} 9. Qf3 {[%emt 0:09:10] [#]} Qh4 $146 {[%emt 0:15:10]} ({Predecessor:} 9... g6 10. Ne4 Nxe4 11. Bxe4 c6 12. O-O Bg7 13. Rd1 Qc7 14. Bf4 Be5 15. Bxe5 Qxe5 16. Re1 Qg5 17. Qa3 {½-½ (17) Sutovsky,E (2697)-Ponomariov,R (2710) Mallorca 2004}) 10. Ne4 {[%emt 0:15:04]} ({Better is} 10. Bf4 $14) 10... c6 {[%emt 0:18:20]} (10... Bg4 $11 11. Qf4 Nxe4 12. Qxe4+ Qe7) 11. Bf4 {[%emt 0:10:26]} ({White should try} 11. Ng5 $1 $14) 11... Nxe4 $11 {[%emt 0:00:07]} 12. Bxe4 {[%emt 0:00:40]} Rd8 {[%emt 0:00:23]} 13. O-O {[%emt 0:05:00]} Be7 {[%emt 0:07:45]} 14. Qe3 {[%emt 0:13:56]} a6 {[%emt 0:09:33]} 15. Bg3 {[%emt 0:11:02]} Qg5 {[%emt 0:00:00]} 16. Qb6 {[%emt 0:03:52]} Rd7 {[%emt 0:00:18] White must now prevent ...Bc5.} 17. h4 {[%emt 0:11:56]} (17. f4 $5 {[%cal Rf4g5]} Bc5+ 18. Bf2 Bxb6 19. fxg5 $11) 17... Qh5 {[%emt 0:05:29] Hoping for ...Bc5.} 18. Bf3 {[%emt 0:01:37]} Bg4 {[%emt 0:01:17] [#]} (18... Qf5 $15 {stays ahead.} 19. Rfe1 Qxc2) 19. Rad1 $1 $16 {[%emt 0:01:53]} Rxd1 {[%emt 0:02:49]} 20. Rxd1 {[%emt 0:00:12][%cal Of3c6] White threatens Bxc6+! and mate.} Bxf3 {[%emt 0:01:46] [#]} 21. Qxb7 $1 {[%emt 0:07:00] Intending Qb8+ and mate.} O-O {[%emt 0:03:41]} 22. gxf3 $40 {[%emt 0:01:26][%mdl 128] White attacks with force.} Bxh4 {[%emt 0:07:28]} 23. Bxh4 {[%emt 0:01:26]} (23. Qxc6 Bxg3 24. fxg3 Qe5 $11) 23... Qxh4 {[%emt 0:01:13]} 24. Qxc6 {[%emt 0:00:05][%mdl 4096] Endgame KQR-KQR} Qb4 {[%emt 0:02:34]} 25. b3 {[%emt 0:01:07]} (25. Qxa6 Qxb2 26. Qc4 Qf6 $11) 25... Qa3 {[%emt 0:00:15] [#]} 26. Rd4 {[%emt 0:02:05]} (26. Qc3 $1 $16) 26... h5 {[%emt 0:01:29]} 27. Kg2 {[%emt 0:00:18]} Qc1 {[%emt 0:01:39]} (27... Qxa2 $16 28. Ra4 Qb2) 28. Qe4 {[%emt 0:01:57] Active counter play!} (28. Qxa6 Qg5+ 29. Kf1 Qc1+ 30. Kg2 Qg5+ 31. Kh3 Qf5+ 32. Kg2 Qg5+ $11) (28. Rd5 $18) 28... Rc8 {[%emt 0:01:02] Loses the game.} (28... Qg5+ $16 29. Kh2 g6) 29. Qf5 $18 {[%emt 0:01:05]} Rf8 {[%emt 0:01:25]} 30. Rc4 {[%emt 0:01:08]} ({Much less strong is} 30. Qxh5 $6 Qxc2 31. b4 Qc6 $16) 30... g6 {[%emt 0:00:14]} 31. Qf6 {[%emt 0:00:04]} a5 {[%emt 0:00:16]} (31... Qa3 $142 32. Ra4 Qc5 33. Rxa6 (33. Qxa6 Qg5+ 34. Kh2 Qd2 $14) 33... Qxc2) 32. a4 {[%emt 0:00:14]} Qd2 {[%emt 0:00:28]} 33. Rc5 {[%emt 0:01:20]} Re8 {[%emt 0:00:41]} 34. Qc3 {[%emt 0:00:45]} ({Don't play} 34. Rc7 $6 Qd5 35. c4 Qe6 $18) (34. c4 $18) 34... Qf4 {[%emt 0:00:51]} (34... Qxc3 $16 {is a better defense.} 35. Rxc3 Re5) 35. Rxa5 {[%emt 0:00:27] Threatens to win with Rd5.} h4 {[%emt 0:00:21]} 36. Rc5 {[%emt 0:00:16] aiming for Rc4.} Kh7 $2 {[%emt 0:00:15]} (36... Qc1 {is tougher.} 37. f4 Qxf4) 37. Rc4 {[%emt 0:00:25] White is clearly winning.} Qh6 {[%emt 0:00:55]} 38. Qf6 {[%emt 0:00:24]} h3+ {[%emt 0:00:34]} 39. Kh2 {[%emt 0:00:09] Weighted Error Value: White=0.15 (very precise) /Black=0.38} 1-0

[Event "34th Pula Open 2022"]
[Site "Pula"]
[Date "2022.06.24"]
[Round "8.2"]
[White "Maki-Uuro, Miikka"]
[Black "Popovic, Milan S"]
[Result "1/2-1/2"]
[ECO "A49"]
[WhiteElo "2332"]
[BlackElo "2383"]
[Annotator "TA"]
[PlyCount "42"]
[EventDate "2022.06.18"]
[EventType "swiss"]
[EventCountry "CRO"]
[SourceTitle "playchess.com"]
[Source "ChessBase"]
[SourceQuality "1"]
[TimeControl "5400+30"]

{[%evp 14,42,16,0,33,26,38,27,31,27,68,73,86,101,95,89,89,25,25,0,0,0,0,0,0,0,0,0,11,14,32]} 1. d4 {[%emt 0:00:04]} Nf6 {[%emt 0:00:04]} 2. Nf3 {[%emt 0:00:10]} g6 {[%emt 0:00:07]} 3. g3 {[%emt 0:00:10]} Bg7 {[%emt 0:00:08]} 4. Bg2 {[%emt 0:00:06]} O-O {[%emt 0:01:02]} 5. O-O {[%emt 0:00:10]} d6 {[%emt 0:00:30][%cal Bd7d6,Bd6e5,Be5e4][%mdl 32]} 6. b3 {[%emt 0:00:11]} e5 {[%emt 0:05:02]} 7. dxe5 {[%emt 0:00:15]} dxe5 {[%emt 0:00:03]} 8. Ba3 {[%emt 0:00:15]} ({Much worse is} 8. Nxe5 Ng4 9. Qxd8 Rxd8 10. Nxg4 Bxa1 $15) 8... e4 $1 {[%emt 0:00:06][%mdl 4] is currently scoring better than 8...Qxd1. A49: 1 d4 Nf6 2 Nf3 g6 3 g3: Anti-King's Indian systems.} 9. Bxf8 {[%emt 0:00:51]} Qxf8 {[%emt 0:00:02]} 10. Nd4 {[%emt 0:00:57]} e3 {[%emt 0:10:12] White has an edge.} 11. f4 {[%emt 0:30:06]} Ng4 {[%emt 0:14:56] [#] And now ...Nf2 would win.} 12. c3 $1 {[%emt 0:25:53]} Nc6 {[%emt 0:02:47]} 13. Nxc6 {[%emt 0:12:00]} bxc6 {[%emt 0:00:04]} 14. Qc1 {[%emt 0:03:02]} Qc5 {[%emt 0:14:03]} 15. Rf3 {[%emt 0:00:33]} ({Better is} 15. Na3 $16) 15... Ba6 $1 $11 {[%emt 0:07:51]} 16. h3 {[%emt 0:05:27]} (16. b4 $5 {[%cal Rb4c5]} Qb6 17. h3 $11) 16... Bxe2 {[%emt 0:12:11] The position is equal.} 17. hxg4 {[%emt 0:00:08]} Bxf3 {[%emt 0:09:09]} 18. Bxf3 {[%emt 0:00:07] Hoping for Kg2.} e2+ $1 {[%emt 0:01:01]} 19. Kg2 {[%emt 0:00:08]} Re8 {[%emt 0:00:32]} 20. Qe1 {[%emt 0:00:12]} Qe3 {[%emt 0:05:18] [#]} 21. a3 $146 {[%emt 0:01:25] [#] Strongly threatening Ra2.} ({Predecessor:} 21. a4 Qd3 22. Ra2 Qxb1 23. Qxb1 e1=Q 24. Qxe1 {½-½ (24) Jianu,V (2537)-Bernadskiy,V (2580) Mamaia 2021}) 21... Qd3 $1 {[%emt 0:01:34] Weighted Error Value: White=0.09 (flawless) /Black=0.08 (flawless)} 1/2-1/2

[Event "34th Pula Open 2022"]
[Site "Pula"]
[Date "2022.06.24"]
[Round "8.3"]
[White "Stankovic, Boris"]
[Black "Lindgren, Philip"]
[Result "1/2-1/2"]
[ECO "B13"]
[WhiteElo "2287"]
[BlackElo "2369"]
[Annotator "TA"]
[PlyCount "84"]
[EventDate "2022.06.18"]
[EventType "swiss"]
[EventCountry "CRO"]
[SourceTitle "playchess.com"]
[Source "ChessBase"]
[SourceQuality "1"]
[TimeControl "5400+30"]

{[%evp 9,84,3,20,14,14,14,18,14,31,26,39,6,0,0,0,0,8,12,25,6,9,31,48,19,24,15,12,-14,-18,-17,-19,-20,-8,-11,-4,-20,-16,-26,29,18,44,0,15,20,13,22,40,36,59,0,0,0,0,0,2,0,0,0,0,0,0,-10,0,0,0,0,0,0,0,0,0,0,0,0,0,0,0]} 1. e4 {[%emt 0:00:11]} c6 {[%emt 0:00:16]} 2. d4 {[%emt 0:00:06]} d5 {[%emt 0:00:07]} 3. exd5 {[%emt 0:00:51]} cxd5 {[%emt 0:00:07]} 4. Bf4 {[%emt 0:00:08]} Nc6 {[%emt 0:03:30]} 5. c3 {[%emt 0:00:09]} Nf6 {[%emt 0:01:23]} 6. Nd2 {[%emt 0:00:20] B13: Caro-Kann: Exchange Variation and Panov-Botvinnik Attack.} Bf5 {[%emt 0:09:26]} 7. Qb3 {[%emt 0:00:50]} Qc8 {[%emt 0:01:47]} 8. Ngf3 {[%emt 0:00:06]} e6 {[%emt 0:03:21]} 9. Nh4 {[%emt 0:00:54]} Be4 {[%emt 0:03:05]} 10. f3 {[%emt 0:13:21]} Bg6 {[%emt 0:00:22]} 11. Nxg6 {[%emt 0:07:10]} hxg6 {[%emt 0:00:05]} 12. g4 {[%emt 0:01:21] Prevents Nh5.} Be7 {[%emt 0:06:17]} 13. h4 {[%emt 0:15:35]} Nd7 {[%emt 0:07:04]} 14. Bg3 {[%emt 0:02:31] [#]} g5 $146 {[%emt 0:06:02][%cal Rg5h4]} ({Predecessor:} 14... a6 15. Bd3 b5 16. Kf1 Qd8 17. Re1 Qb6 18. Kg2 b4 19. Qa4 bxc3 20. bxc3 Qb2 21. Qxc6 O-O 22. Re2 Nf6 23. Nb1 Qa1 24. Qb7 {1-0 (24) Rosen,E (2372)-Lehaci,M (1965) Cap Aurora 2017}) 15. h5 {[%emt 0:00:49]} Bd8 {[%emt 0:02:02]} 16. Bb5 {[%emt 0:12:34]} Bc7 {[%emt 0:00:53]} 17. Nf1 {[%emt 0:00:09]} a6 {[%emt 0:07:46]} 18. Bxc6 {[%emt 0:03:13]} bxc6 {[%emt 0:03:10]} 19. Qc2 {[%emt 0:01:11]} c5 {[%emt 0:07:05]} 20. Qd2 {[%emt 0:05:17]} cxd4 {[%emt 0:06:36]} 21. cxd4 {[%emt 0:02:00]} Bxg3+ {[%emt 0:07:18]} 22. Nxg3 {[%emt 0:00:10]} Qd8 {[%emt 0:00:18]} 23. Kf2 {[%emt 0:01:11]} Qf6 {[%emt 0:01:37]} (23... O-O $142) 24. Rac1 $11 {[%emt 0:02:15]} O-O {[%emt 0:01:30]} 25. Rc6 {[%emt 0:07:29]} Rfc8 {[%emt 0:05:43]} 26. Rhc1 {[%emt 0:00:20]} Rxc6 {[%emt 0:00:51]} (26... Rcb8 {feels hotter.} 27. Nf5 a5 28. Nd6 Rb4) 27. Rxc6 {[%emt 0:00:06]} Qd8 {[%emt 0:01:45]} 28. Qc3 {[%emt 0:04:42]} a5 {[%emt 0:02:52]} 29. Rc7 {[%emt 0:03:22]} (29. a4 $1 $14) 29... Nb6 {[%emt 0:03:14] The position is equal.} 30. Qc6 {[%emt 0:02:13]} Rc8 {[%emt 0:01:10]} 31. Rxc8 {[%emt 0:00:40]} Nxc8 {[%emt 0:00:03][%mdl 4096] Endgame KQN-KQN} 32. Ne2 {[%emt 0:00:49]} Ne7 {[%emt 0:01:24]} 33. Qc5 {[%emt 0:01:49]} g6 {[%emt 0:01:22]} 34. Qc1 {[%emt 0:01:00]} f6 {[%emt 0:00:25]} 35. Qh1 {[%emt 0:03:27]} Kg7 {[%emt 0:01:31]} (35... gxh5 {is interesting.} 36. Qxh5 Kg7 37. b3 Ng6) 36. hxg6 {[%emt 0:02:52]} Nxg6 {[%emt 0:01:17]} 37. Qc1 {[%emt 0:01:08]} Qb6 {[%emt 0:02:06]} 38. Qc5 {[%emt 0:02:10]} Qxb2 {[%emt 0:01:04]} 39. Qc7+ {[%emt 0:00:04]} Kh6 {[%emt 0:02:31] [#] Threatens to win with ...Nf4.} 40. Qh2+ {[%emt 0:00:09]} Kg7 {[%emt 0:01:06] Hoping for ...Nf4.} 41. Qc7+ {[%emt 0:00:06]} Kh6 {[%emt 0:00:14] ...Nf4 is the strong threat.} 42. Qh2+ {[%emt 0:00:07]} Kg7 {[%emt 0:00:21] Weighted Error Value: White=0.06 (flawless) /Black=0.08 (flawless)} 1/2-1/2